[Event "Titled Tuesday Blitz May 24 Early 2022"]
[White "Begunov, Konstantin"]
[Black "Amgalantengis, Enkh-Amgalan"]
[WhiteFideId "4118510"]
[BlackFideId "4903536"]
[WhiteElo "2262"]
[BlackElo "1719"]
[Result "0-1"]
[Round "03"]
[TimeControl "180+1"]
[Date "2022.05.25"]
[WhiteClock "0:00:01"]
[BlackClock "0:00:23"]

1. d4 {[%clk 0:02:59]}  Nf6 {[%clk 0:02:46]} 2. c4 {[%clk 0:02:58]}  g6 {[%clk 0:02:46]} 3. f3 {[%clk 0:02:58]}  Bg7 {[%clk 0:02:46]} 4. e4 {[%clk 0:02:57]}  O-O {[%clk 0:02:47]} 5. Nc3 {[%clk 0:02:57]}  c6 {[%clk 0:02:48]} 6. Be3 {[%clk 0:02:58]}  d5 {[%clk 0:02:48]} 7. cxd5 {[%clk 0:02:58]}  cxd5 {[%clk 0:02:49]} 8. e5 {[%clk 0:02:58]}  Nfd7 {[%clk 0:02:49]} 9. f4 {[%clk 0:02:56]}  Nc6 {[%clk 0:02:49]} 10. Nf3 {[%clk 0:02:56]}  Nb6 {[%clk 0:02:49]} 11. Bd3 {[%clk 0:02:53]}  Bg4 {[%clk 0:02:49]} 12. h3 {[%clk 0:02:51]}  Bxf3 {[%clk 0:02:50]} 13. Qxf3 {[%clk 0:02:52]}  Rc8 {[%clk 0:02:51]} 14. O-O {[%clk 0:02:51]}  Nb4 {[%clk 0:02:49]} 15. Bb1 {[%clk 0:02:48]}  Nc4 {[%clk 0:02:48]} 16. Bc1 {[%clk 0:02:46]}  e6 {[%clk 0:02:48]} 17. g4 {[%clk 0:02:31]}  Qb6 {[%clk 0:02:47]} 18. Rd1 {[%clk 0:02:26]}  Nc6 {[%clk 0:02:46]} 19. Qf2 {[%clk 0:02:22]}  f6 {[%clk 0:02:42]} 20. b3 {[%clk 0:02:14]}  N4a5 {[%clk 0:02:26]} 21. Ba3 {[%clk 0:02:13]}  Rf7 {[%clk 0:02:24]} 22. Na4 {[%clk 0:02:11]}  Qd8 {[%clk 0:02:24]} 23. Nc5 {[%clk 0:02:07]}  fxe5 {[%clk 0:02:19]} 24. Nxe6 {[%clk 0:02:04]}  Qf6 {[%clk 0:02:17]} 25. Nxg7 {[%clk 0:02:00]}  Qxg7 {[%clk 0:02:18]} 26. dxe5 {[%clk 0:01:50]}  Nxe5 {[%clk 0:01:41]} 27. Bb2 {[%clk 0:01:49]}  Nac6 {[%clk 0:01:41]} 28. Rxd5 {[%clk 0:01:40]}  Rcf8 {[%clk 0:01:37]} 29. f5 {[%clk 0:01:03]}  gxf5 {[%clk 0:01:31]} 30. g5 {[%clk 0:01:03]}  Qxg5+ {[%clk 0:01:25]} 31. Kh2 {[%clk 0:01:01]}  f4 {[%clk 0:01:14]} 32. Be4 {[%clk 0:00:57]}  Rg7 {[%clk 0:01:00]} 33. Rdd1 {[%clk 0:00:26]}  f3 {[%clk 0:00:44]} 34. Rg1 {[%clk 0:00:24]}  Qf4+ {[%clk 0:00:42]} 35. Kh1 {[%clk 0:00:20]}  Qxe4 {[%clk 0:00:43]} 36. Rxg7+ {[%clk 0:00:20]}  Kxg7 {[%clk 0:00:43]} 37. Rg1+ {[%clk 0:00:20]}  Kh8 {[%clk 0:00:43]} 38. Rg4 {[%clk 0:00:16]}  Qe2 {[%clk 0:00:36]} 39. Qh4 {[%clk 0:00:06]}  f2 {[%clk 0:00:24]} 40. Qg5 {[%clk 0:00:01]}  f1=Q+ {[%clk 0:00:23]} 0-1


[Site "https://www.chess.com"]

[Event "Titled Tuesday Blitz May 24 Early 2022"]
[White "Bellissimo, Joseph F."]
[Black "Urazayev, Arystanbek"]
[WhiteFideId "2609843"]
[BlackFideId "13709810"]
[WhiteElo "2061"]
[BlackElo "2422"]
[Result "1-0"]
[Round "03"]
[TimeControl "180+1"]
[Date "2022.05.25"]
[WhiteClock "0:00:21"]
[BlackClock "0:00:11"]

1. e4 {[%clk 0:03:00]}  e5 {[%clk 0:03:00]} 2. Nf3 {[%clk 0:02:36]}  Nc6 {[%clk 0:02:59]} 3. Bc4 {[%clk 0:02:37]}  Bc5 {[%clk 0:02:58]} 4. c3 {[%clk 0:02:37]}  Nf6 {[%clk 0:02:59]} 5. d3 {[%clk 0:02:37]}  d6 {[%clk 0:02:59]} 6. Bb3 {[%clk 0:02:37]}  a5 {[%clk 0:02:59]} 7. h3 {[%clk 0:02:37]}  h6 {[%clk 0:02:59]} 8. Nbd2 {[%clk 0:02:36]}  Be6 {[%clk 0:02:59]} 9. Bc2 {[%clk 0:02:36]}  O-O {[%clk 0:02:58]} 10. Nf1 {[%clk 0:02:36]}  d5 {[%clk 0:02:58]} 11. Qe2 {[%clk 0:02:35]}  b5 {[%clk 0:02:58]} 12. b3 {[%clk 0:02:33]}  a4 {[%clk 0:02:57]} 13. Bb2 {[%clk 0:02:30]}  a3 {[%clk 0:02:54]} 14. Bc1 {[%clk 0:02:29]}  b4 {[%clk 0:02:50]} 15. c4 {[%clk 0:02:24]}  dxe4 {[%clk 0:02:43]} 16. dxe4 {[%clk 0:02:24]}  Nd4 {[%clk 0:02:43]} 17. Nxd4 {[%clk 0:02:23]}  Qxd4 {[%clk 0:02:25]} 18. Rb1 {[%clk 0:02:23]}  Qc3+ {[%clk 0:02:25]} 19. Qd2 {[%clk 0:02:23]}  Qxd2+ {[%clk 0:02:04]} 20. Bxd2 {[%clk 0:02:21]}  Rfd8 {[%clk 0:02:04]} 21. Be3 {[%clk 0:02:21]}  Nd7 {[%clk 0:02:03]} 22. Ke2 {[%clk 0:02:16]}  c6 {[%clk 0:02:02]} 23. Ng3 {[%clk 0:02:12]}  Bxe3 {[%clk 0:02:02]} 24. Kxe3 {[%clk 0:02:11]}  Nc5 {[%clk 0:02:00]} 25. Rhd1 {[%clk 0:02:11]}  Kf8 {[%clk 0:01:59]} 26. Nf5 {[%clk 0:02:08]}  h5 {[%clk 0:01:54]} 27. g4 {[%clk 0:02:07]}  g6 {[%clk 0:01:53]} 28. Ng3 {[%clk 0:01:58]}  hxg4 {[%clk 0:01:54]} 29. hxg4 {[%clk 0:01:59]}  Bxg4 {[%clk 0:01:54]} 30. f3 {[%clk 0:01:59]}  Be6 {[%clk 0:01:49]} 31. f4 {[%clk 0:01:48]}  exf4+ {[%clk 0:01:45]} 32. Kxf4 {[%clk 0:01:47]}  Ke7 {[%clk 0:01:46]} 33. e5 {[%clk 0:01:44]}  Rh8 {[%clk 0:01:45]} 34. Rd6 {[%clk 0:01:42]}  Rh4+ {[%clk 0:01:44]} 35. Kf3 {[%clk 0:01:41]}  Rh2 {[%clk 0:01:37]} 36. Be4 {[%clk 0:01:35]}  Rxa2 {[%clk 0:01:35]} 37. Bxc6 {[%clk 0:01:34]}  Rh8 {[%clk 0:01:30]} 38. Bd5 {[%clk 0:01:23]}  Rc2 {[%clk 0:01:28]} 39. Rc6 {[%clk 0:01:22]}  a2 {[%clk 0:01:24]} 40. Rd1 {[%clk 0:01:19]}  Nxb3 {[%clk 0:00:51]} 41. Bxe6 {[%clk 0:01:02]}  Rd2 {[%clk 0:00:49]} 42. Rf1 {[%clk 0:00:25]}  a1=Q {[%clk 0:00:26]} 43. Rxa1 {[%clk 0:00:24]}  Nxa1 {[%clk 0:00:26]} 44. Bd5 {[%clk 0:00:24]}  Rd8 {[%clk 0:00:20]} 45. Ne4 {[%clk 0:00:22]}  Rd3+ {[%clk 0:00:19]} 46. Kf4 {[%clk 0:00:21]}  b3 {[%clk 0:00:16]} 47. Rc7+ {[%clk 0:00:21]}  Rd7 {[%clk 0:00:16]} 48. Rxd7+ {[%clk 0:00:22]}  Kxd7 {[%clk 0:00:17]} 49. Nc5+ {[%clk 0:00:22]}  Kc7 {[%clk 0:00:14]} 50. Nxd3 {[%clk 0:00:23]}  Nc2 {[%clk 0:00:14]} 51. Nb2 {[%clk 0:00:22]}  Kb6 {[%clk 0:00:13]} 52. Bxf7 {[%clk 0:00:22]}  Kc5 {[%clk 0:00:11]} 53. e6 {[%clk 0:00:21]}  Kd6 {[%clk 0:00:11]} 54. Kg5 {[%clk 0:00:21]}  Nd4 {[%clk 0:00:06]} 55. Kf6 {[%clk 0:00:20]}  Nc6 {[%clk 0:00:05]} 56. Bxg6 {[%clk 0:00:19]}  Kc5 {[%clk 0:00:04]} 57. e7 {[%clk 0:00:19]}  Nxe7 {[%clk 0:00:05]} 58. Kxe7 {[%clk 0:00:20]}  Kb4 {[%clk 0:00:06]} 59. Kd6 {[%clk 0:00:18]}  Kc3 {[%clk 0:00:06]} 60. c5 {[%clk 0:00:18]}  Kxb2 {[%clk 0:00:06]} 61. c6 {[%clk 0:00:19]}  Ka3 {[%clk 0:00:07]} 62. c7 {[%clk 0:00:20]}  b2 {[%clk 0:00:08]} 63. c8=Q {[%clk 0:00:20]}  b1=Q {[%clk 0:00:09]} 64. Qa6+ {[%clk 0:00:20]}  Kb2 {[%clk 0:00:10]} 65. Qb5+ {[%clk 0:00:20]}  Kc1 {[%clk 0:00:11]} 66. Qxb1+ {[%clk 0:00:20]}  Kd2 {[%clk 0:00:12]} 67. Qd3+ {[%clk 0:00:20]}  Kc1 {[%clk 0:00:11]} 68. Qc2# {[%clk 0:00:21]} 1-0


[Site "https://www.chess.com"]

[Event "Titled Tuesday Blitz May 24 Early 2022"]
[White "Bocharov, Dmitry"]
[Black "Bluebaum, Matthias"]
[WhiteFideId "4138716"]
[BlackFideId "24651516"]
[WhiteElo "2541"]
[BlackElo "2556"]
[Result "0-1"]
[Round "03"]
[TimeControl "180+1"]
[Date "2022.05.24"]
[WhiteClock "0:00:10"]
[BlackClock "0:01:11"]

1. d4 {[%clk 0:02:50]}  Nf6 {[%clk 0:02:59]} 2. c4 {[%clk 0:02:50]}  e6 {[%clk 0:03:00]} 3. Nf3 {[%clk 0:02:48]}  d5 {[%clk 0:03:00]} 4. g3 {[%clk 0:02:48]}  Bb4+ {[%clk 0:02:59]} 5. Bd2 {[%clk 0:02:47]}  a5 {[%clk 0:02:59]} 6. Bg2 {[%clk 0:02:42]}  O-O {[%clk 0:02:59]} 7. Qc2 {[%clk 0:02:27]}  c5 {[%clk 0:02:56]} 8. dxc5 {[%clk 0:02:27]}  d4 {[%clk 0:02:56]} 9. Bxb4 {[%clk 0:02:27]}  axb4 {[%clk 0:02:57]} 10. Ne5 {[%clk 0:02:27]}  Qc7 {[%clk 0:02:46]} 11. Nd3 {[%clk 0:02:27]}  Na6 {[%clk 0:02:47]} 12. Nd2 {[%clk 0:02:19]}  e5 {[%clk 0:02:46]} 13. O-O {[%clk 0:02:15]}  Bf5 {[%clk 0:02:46]} 14. Qb3 {[%clk 0:01:54]}  Bxd3 {[%clk 0:02:33]} 15. Qxd3 {[%clk 0:01:38]}  Nxc5 {[%clk 0:02:33]} 16. Qc2 {[%clk 0:01:38]}  Rfe8 {[%clk 0:02:33]} 17. Nb3 {[%clk 0:01:35]}  Nfd7 {[%clk 0:02:16]} 18. Bd5 {[%clk 0:01:21]}  Nb6 {[%clk 0:02:06]} 19. e4 {[%clk 0:01:14]}  dxe3 {[%clk 0:01:34]} 20. fxe3 {[%clk 0:01:14]}  Nxd5 {[%clk 0:01:34]} 21. cxd5 {[%clk 0:01:15]}  b6 {[%clk 0:01:35]} 22. Rac1 {[%clk 0:00:52]}  Rxa2 {[%clk 0:01:30]} 23. Qc4 {[%clk 0:00:34]}  Rxb2 {[%clk 0:01:15]} 24. d6 {[%clk 0:00:26]}  Qb7 {[%clk 0:01:13]} 25. Rf2 {[%clk 0:00:10]}  Rxb3 {[%clk 0:01:11]} 0-1


[Site "https://www.chess.com"]

[Event "Titled Tuesday Blitz May 24 Early 2022"]
[White "Borgaonkar Akshay"]
[Black "Pham, Tran Gia Phuc"]
[WhiteFideId "25639110"]
[BlackFideId "12415669"]
[WhiteElo "1639"]
[BlackElo "1789"]
[Result "1-0"]
[Round "03"]
[TimeControl "180+1"]
[Date "2022.05.25"]
[WhiteClock "0:00:51"]
[BlackClock "0:00:34"]

1. d4 {[%clk 0:02:58]}  Nf6 {[%clk 0:02:59]} 2. Bg5 {[%clk 0:02:57]}  Ne4 {[%clk 0:02:58]} 3. Bf4 {[%clk 0:02:56]}  c5 {[%clk 0:02:58]} 4. d5 {[%clk 0:02:52]}  Qb6 {[%clk 0:02:57]} 5. Nd2 {[%clk 0:02:52]}  Nxd2 {[%clk 0:02:55]} 6. Bxd2 {[%clk 0:02:49]}  d6 {[%clk 0:02:55]} 7. e4 {[%clk 0:02:48]}  Nd7 {[%clk 0:02:54]} 8. f4 {[%clk 0:02:46]}  g6 {[%clk 0:02:52]} 9. Nf3 {[%clk 0:02:44]}  Bg7 {[%clk 0:02:52]} 10. c3 {[%clk 0:02:43]}  O-O {[%clk 0:02:51]} 11. Qc2 {[%clk 0:02:34]}  Nf6 {[%clk 0:02:49]} 12. Bc4 {[%clk 0:02:31]}  Bd7 {[%clk 0:02:28]} 13. O-O {[%clk 0:02:26]}  Bb5 {[%clk 0:02:27]} 14. Bxb5 {[%clk 0:02:25]}  Qxb5 {[%clk 0:02:27]} 15. c4 {[%clk 0:02:24]}  Qa6 {[%clk 0:02:24]} 16. Qd3 {[%clk 0:02:11]}  Rab8 {[%clk 0:02:16]} 17. a4 {[%clk 0:02:07]}  Nd7 {[%clk 0:02:15]} 18. Bc3 {[%clk 0:02:04]}  Qb6 {[%clk 0:01:56]} 19. Bxg7 {[%clk 0:01:59]}  Kxg7 {[%clk 0:01:57]} 20. Qc3+ {[%clk 0:01:56]}  Kg8 {[%clk 0:01:56]} 21. e5 {[%clk 0:01:40]}  Qb4 {[%clk 0:01:56]} 22. Qc2 {[%clk 0:01:35]}  f6 {[%clk 0:01:39]} 23. a5 {[%clk 0:01:21]}  b5 {[%clk 0:01:31]} 24. e6 {[%clk 0:01:20]}  Qxc4 {[%clk 0:01:26]} 25. Qxc4 {[%clk 0:01:18]}  bxc4 {[%clk 0:01:26]} 26. exd7 {[%clk 0:01:19]}  Rfd8 {[%clk 0:01:20]} 27. Nd2 {[%clk 0:01:07]}  Rxb2 {[%clk 0:01:19]} 28. Nxc4 {[%clk 0:01:06]}  Rb4 {[%clk 0:01:19]} 29. Rfc1 {[%clk 0:01:05]}  Rxd7 {[%clk 0:01:19]} 30. a6 {[%clk 0:01:01]}  Rd8 {[%clk 0:01:17]} 31. Na5 {[%clk 0:01:00]}  Rd7 {[%clk 0:01:04]} 32. Nc6 {[%clk 0:00:59]}  Rxf4 {[%clk 0:00:36]} 33. Rcb1 {[%clk 0:00:55]}  Kf7 {[%clk 0:00:35]} 34. Rb7 {[%clk 0:00:53]}  Ke8 {[%clk 0:00:34]} 35. Rxa7 {[%clk 0:00:51]} 1-0


[Site "https://www.chess.com"]

[Event "Titled Tuesday Blitz May 24 Early 2022"]
[White "Bryakin, Mikhail"]
[Black "Turutin, Alexander"]
[WhiteFideId "4165314"]
[BlackFideId "4180623"]
[WhiteElo "2417"]
[BlackElo "2402"]
[Result "1-0"]
[Round "03"]
[TimeControl "180+1"]
[Date "2022.05.25"]
[WhiteClock "0:01:54"]
[BlackClock "0:00:25"]

1. e4 {[%clk 0:02:54]}  c6 {[%clk 0:02:58]} 2. c4 {[%clk 0:02:50]}  d5 {[%clk 0:02:59]} 3. cxd5 {[%clk 0:02:49]}  cxd5 {[%clk 0:03:00]} 4. exd5 {[%clk 0:02:50]}  Nf6 {[%clk 0:03:00]} 5. Qa4+ {[%clk 0:02:40]}  Nbd7 {[%clk 0:02:59]} 6. Nc3 {[%clk 0:02:40]}  g6 {[%clk 0:02:56]} 7. Bc4 {[%clk 0:02:39]}  Bg7 {[%clk 0:02:55]} 8. Nf3 {[%clk 0:02:38]}  O-O {[%clk 0:02:56]} 9. d3 {[%clk 0:02:39]}  a6 {[%clk 0:02:39]} 10. Qa3 {[%clk 0:02:38]}  Nb6 {[%clk 0:02:21]} 11. Qb3 {[%clk 0:02:37]}  Nbd7 {[%clk 0:02:13]} 12. a4 {[%clk 0:02:32]}  b6 {[%clk 0:01:36]} 13. O-O {[%clk 0:02:29]}  Nc5 {[%clk 0:01:29]} 14. Qa2 {[%clk 0:02:23]}  Bf5 {[%clk 0:01:27]} 15. d4 {[%clk 0:02:13]}  Nd3 {[%clk 0:01:11]} 16. Rd1 {[%clk 0:02:13]}  Nxc1 {[%clk 0:01:09]} 17. Raxc1 {[%clk 0:02:14]}  Bg4 {[%clk 0:01:02]} 18. Be2 {[%clk 0:02:13]}  Qd6 {[%clk 0:00:55]} 19. h3 {[%clk 0:02:12]}  Bf5 {[%clk 0:00:54]} 20. Ne5 {[%clk 0:02:12]}  Rfd8 {[%clk 0:00:54]} 21. Bf3 {[%clk 0:02:08]}  Rac8 {[%clk 0:00:26]} 22. Nc6 {[%clk 0:02:08]}  Rd7 {[%clk 0:00:26]} 23. Re1 {[%clk 0:02:04]}  e6 {[%clk 0:00:24]} 24. dxe6 {[%clk 0:02:00]}  Bxe6 {[%clk 0:00:25]} 25. d5 {[%clk 0:01:59]}  Rxc6 {[%clk 0:00:25]} 26. dxe6 {[%clk 0:01:54]} 1-0


[Site "https://www.chess.com"]

[Event "Titled Tuesday Blitz May 24 Early 2022"]
[White "Buscar, Michael"]
[Black "Barria Zuniga, Daniel"]
[WhiteFideId "2603616"]
[BlackFideId "3400816"]
[WhiteElo "2010"]
[BlackElo "2414"]
[Result "0-1"]
[Round "03"]
[TimeControl "180+1"]
[Date "2022.05.25"]
[WhiteClock "0:00:02"]
[BlackClock "0:00:08"]

1. d4 {[%clk 0:02:52]}  f5 {[%clk 0:02:56]} 2. g3 {[%clk 0:02:51]}  Nf6 {[%clk 0:02:55]} 3. Bg2 {[%clk 0:02:50]}  g6 {[%clk 0:02:56]} 4. Nh3 {[%clk 0:02:50]}  Bg7 {[%clk 0:02:55]} 5. Nf4 {[%clk 0:02:50]}  e6 {[%clk 0:02:55]} 6. Nd2 {[%clk 0:02:48]}  d5 {[%clk 0:02:54]} 7. Nf3 {[%clk 0:02:48]}  O-O {[%clk 0:02:53]} 8. h4 {[%clk 0:02:49]}  Ne4 {[%clk 0:02:51]} 9. h5 {[%clk 0:02:40]}  g5 {[%clk 0:02:50]} 10. Nd3 {[%clk 0:02:40]}  h6 {[%clk 0:02:46]} 11. Nfe5 {[%clk 0:02:38]}  Nd7 {[%clk 0:02:39]} 12. Ng6 {[%clk 0:02:28]}  Rf7 {[%clk 0:02:36]} 13. c3 {[%clk 0:02:21]}  c5 {[%clk 0:02:23]} 14. Be3 {[%clk 0:02:10]}  b6 {[%clk 0:02:12]} 15. dxc5 {[%clk 0:01:56]}  Qc7 {[%clk 0:01:19]} 16. cxb6 {[%clk 0:01:40]}  axb6 {[%clk 0:01:20]} 17. O-O {[%clk 0:01:38]}  Bb7 {[%clk 0:01:13]} 18. Qb3 {[%clk 0:01:00]}  e5 {[%clk 0:00:54]} 19. Rfd1 {[%clk 0:00:39]}  f4 {[%clk 0:00:51]} 20. gxf4 {[%clk 0:00:39]}  gxf4 {[%clk 0:00:48]} 21. Bc1 {[%clk 0:00:34]}  Ndc5 {[%clk 0:00:41]} 22. Nxc5 {[%clk 0:00:25]}  Nxc5 {[%clk 0:00:40]} 23. Qc2 {[%clk 0:00:25]}  e4 {[%clk 0:00:38]} 24. c4 {[%clk 0:00:19]}  d4 {[%clk 0:00:33]} 25. Rb1 {[%clk 0:00:09]}  d3 {[%clk 0:00:18]} 26. exd3 {[%clk 0:00:08]}  Nxd3 {[%clk 0:00:16]} 27. Rxd3 {[%clk 0:00:06]}  exd3 {[%clk 0:00:16]} 28. Qxd3 {[%clk 0:00:07]}  Bxg2 {[%clk 0:00:13]} 29. Kxg2 {[%clk 0:00:07]}  f3+ {[%clk 0:00:13]} 30. Kg1 {[%clk 0:00:06]}  Rd8 {[%clk 0:00:13]} 31. Qc2 {[%clk 0:00:04]}  Qd7 {[%clk 0:00:12]} 32. Qe4 {[%clk 0:00:02]}  Qh3 {[%clk 0:00:08]} 0-1


[Site "https://www.chess.com"]

[Event "Titled Tuesday Blitz May 24 Early 2022"]
[White "Ceres, Dragos"]
[Black "Ianov, Viktor"]
[WhiteFideId "13905864"]
[BlackFideId "14102730"]
[WhiteElo "2150"]
[BlackElo "2152"]
[Result "0-1"]
[Round "03"]
[TimeControl "180+1"]
[Date "2022.05.25"]
[WhiteClock "0:00:13"]
[BlackClock "0:00:07"]

1. e4 {[%clk 0:03:00]}  d6 {[%clk 0:02:59]} 2. d4 {[%clk 0:02:53]}  Nf6 {[%clk 0:02:58]} 3. Nc3 {[%clk 0:02:22]}  c6 {[%clk 0:02:58]} 4. f4 {[%clk 0:02:15]}  Qb6 {[%clk 0:02:57]} 5. Nf3 {[%clk 0:02:14]}  Bg4 {[%clk 0:02:57]} 6. a3 {[%clk 0:02:04]}  e5 {[%clk 0:02:53]} 7. Be3 {[%clk 0:01:53]}  Nbd7 {[%clk 0:02:45]} 8. Qc1 {[%clk 0:01:34]}  Qc7 {[%clk 0:02:40]} 9. Be2 {[%clk 0:01:30]}  Be7 {[%clk 0:02:34]} 10. O-O {[%clk 0:01:30]}  O-O {[%clk 0:02:33]} 11. Qd2 {[%clk 0:01:25]}  Rfe8 {[%clk 0:02:27]} 12. Rad1 {[%clk 0:01:24]}  Rad8 {[%clk 0:02:20]} 13. h3 {[%clk 0:01:16]}  Bxf3 {[%clk 0:02:19]} 14. Bxf3 {[%clk 0:01:17]}  Bf8 {[%clk 0:02:13]} 15. Rfe1 {[%clk 0:01:17]}  b5 {[%clk 0:02:08]} 16. Qf2 {[%clk 0:01:17]}  a5 {[%clk 0:02:06]} 17. fxe5 {[%clk 0:01:13]}  dxe5 {[%clk 0:02:05]} 18. d5 {[%clk 0:01:14]}  b4 {[%clk 0:02:03]} 19. axb4 {[%clk 0:01:11]}  axb4 {[%clk 0:02:02]} 20. dxc6 {[%clk 0:01:09]}  Qxc6 {[%clk 0:02:02]} 21. Nd5 {[%clk 0:01:09]}  Rc8 {[%clk 0:01:56]} 22. Rd2 {[%clk 0:01:05]}  Nxd5 {[%clk 0:01:44]} 23. exd5 {[%clk 0:01:05]}  Qd6 {[%clk 0:01:43]} 24. Bg4 {[%clk 0:01:04]}  Rcd8 {[%clk 0:01:38]} 25. Red1 {[%clk 0:01:03]}  Nf6 {[%clk 0:01:36]} 26. Bf3 {[%clk 0:01:02]}  e4 {[%clk 0:01:33]} 27. Be2 {[%clk 0:01:02]}  Rc8 {[%clk 0:01:25]} 28. Bb5 {[%clk 0:01:02]}  Red8 {[%clk 0:01:22]} 29. Ba4 {[%clk 0:01:01]}  Qa6 {[%clk 0:01:14]} 30. Bb3 {[%clk 0:01:01]}  Bd6 {[%clk 0:01:14]} 31. Bd4 {[%clk 0:01:00]}  Nd7 {[%clk 0:01:05]} 32. Rf1 {[%clk 0:00:57]}  f6 {[%clk 0:01:03]} 33. Qf5 {[%clk 0:00:55]}  Nc5 {[%clk 0:00:51]} 34. Bxc5 {[%clk 0:00:55]}  Bxc5+ {[%clk 0:00:48]} 35. Kh1 {[%clk 0:00:56]}  e3 {[%clk 0:00:46]} 36. Rd3 {[%clk 0:00:51]}  Qd6 {[%clk 0:00:45]} 37. Re1 {[%clk 0:00:49]}  Re8 {[%clk 0:00:44]} 38. Qg4 {[%clk 0:00:44]}  Rcd8 {[%clk 0:00:42]} 39. Re2 {[%clk 0:00:44]}  Re5 {[%clk 0:00:41]} 40. Qf3 {[%clk 0:00:42]}  Rde8 {[%clk 0:00:39]} 41. Ba4 {[%clk 0:00:41]}  R8e7 {[%clk 0:00:38]} 42. Bb3 {[%clk 0:00:41]}  h5 {[%clk 0:00:37]} 43. Rd1 {[%clk 0:00:41]}  g5 {[%clk 0:00:36]} 44. Rf1 {[%clk 0:00:41]}  Kg7 {[%clk 0:00:34]} 45. Qxh5 {[%clk 0:00:41]}  Bd4 {[%clk 0:00:30]} 46. c3 {[%clk 0:00:31]}  bxc3 {[%clk 0:00:29]} 47. bxc3 {[%clk 0:00:32]}  Bxc3 {[%clk 0:00:27]} 48. Bc2 {[%clk 0:00:32]}  Re4 {[%clk 0:00:21]} 49. Bxe4 {[%clk 0:00:31]}  Rxe4 {[%clk 0:00:21]} 50. Qf3 {[%clk 0:00:30]}  Rf4 {[%clk 0:00:20]} 51. Rxe3 {[%clk 0:00:24]}  Rxf3 {[%clk 0:00:19]} 52. Rexf3 {[%clk 0:00:21]}  Be5 {[%clk 0:00:19]} 53. Rd3 {[%clk 0:00:21]}  Kg6 {[%clk 0:00:18]} 54. Rfd1 {[%clk 0:00:21]}  Kh5 {[%clk 0:00:15]} 55. Kg1 {[%clk 0:00:22]}  Kh4 {[%clk 0:00:15]} 56. Kf1 {[%clk 0:00:20]}  f5 {[%clk 0:00:12]} 57. Kg1 {[%clk 0:00:20]}  g4 {[%clk 0:00:12]} 58. hxg4 {[%clk 0:00:20]}  fxg4 {[%clk 0:00:13]} 59. Kf1 {[%clk 0:00:20]}  Qf6+ {[%clk 0:00:12]} 60. Kg1 {[%clk 0:00:21]}  Qb6+ {[%clk 0:00:10]} 61. Kh1 {[%clk 0:00:20]}  g3 {[%clk 0:00:10]} 62. d6 {[%clk 0:00:19]}  Kg4 {[%clk 0:00:09]} 63. Rd5 {[%clk 0:00:13]}  Qe3 {[%clk 0:00:08]} 64. d7 {[%clk 0:00:12]}  Qh6+ {[%clk 0:00:07]} 65. Kg1 {[%clk 0:00:13]}  Qe3+ {[%clk 0:00:07]} 66. Kf1 {[%clk 0:00:13]}  Qf2# {[%clk 0:00:07]} 0-1


[Site "https://www.chess.com"]

[Event "Titled Tuesday Blitz May 24 Early 2022"]
[White "Chen, Qi b"]
[Black "Martin Carmona, Gaston Manuel"]
[WhiteFideId "8614733"]
[BlackFideId "22284567"]
[WhiteElo "2432"]
[BlackElo "2162"]
[Result "1-0"]
[Round "03"]
[TimeControl "180+1"]
[Date "2022.05.25"]
[WhiteClock "0:00:15"]
[BlackClock "0:00:03"]

1. d4 {[%clk 0:03:00]}  Nf6 {[%clk 0:02:58]} 2. c4 {[%clk 0:03:01]}  e6 {[%clk 0:02:59]} 3. Nc3 {[%clk 0:03:01]}  Bb4 {[%clk 0:02:59]} 4. Qc2 {[%clk 0:03:01]}  O-O {[%clk 0:02:58]} 5. a3 {[%clk 0:03:00]}  Bxc3+ {[%clk 0:02:58]} 6. Qxc3 {[%clk 0:03:01]}  b5 {[%clk 0:02:58]} 7. e3 {[%clk 0:02:52]}  bxc4 {[%clk 0:02:54]} 8. Bxc4 {[%clk 0:02:52]}  d5 {[%clk 0:02:43]} 9. Bd3 {[%clk 0:02:47]}  a5 {[%clk 0:02:44]} 10. Nf3 {[%clk 0:02:40]}  Ne4 {[%clk 0:02:37]} 11. Qc2 {[%clk 0:02:37]}  Ba6 {[%clk 0:02:38]} 12. Bxe4 {[%clk 0:02:02]}  dxe4 {[%clk 0:02:39]} 13. Qxe4 {[%clk 0:02:02]}  Nd7 {[%clk 0:01:56]} 14. Bd2 {[%clk 0:02:00]}  c5 {[%clk 0:01:51]} 15. Bc3 {[%clk 0:01:52]}  Qb6 {[%clk 0:01:30]} 16. O-O-O {[%clk 0:01:30]}  cxd4 {[%clk 0:01:19]} 17. Qxd4 {[%clk 0:01:15]}  Qxd4 {[%clk 0:01:08]} 18. Rxd4 {[%clk 0:01:13]}  Nc5 {[%clk 0:01:07]} 19. Kb1 {[%clk 0:01:11]}  f6 {[%clk 0:00:51]} 20. Rhd1 {[%clk 0:01:09]}  e5 {[%clk 0:00:42]} 21. Rd5 {[%clk 0:01:03]}  Ne4 {[%clk 0:00:42]} 22. Be1 {[%clk 0:01:01]}  a4 {[%clk 0:00:40]} 23. Nd2 {[%clk 0:00:45]}  Nxd2+ {[%clk 0:00:28]} 24. Bxd2 {[%clk 0:00:45]}  Bb7 {[%clk 0:00:28]} 25. Rd7 {[%clk 0:00:43]}  Bxg2 {[%clk 0:00:28]} 26. Bb4 {[%clk 0:00:41]}  Be4+ {[%clk 0:00:27]} 27. Ka1 {[%clk 0:00:32]}  Rfc8 {[%clk 0:00:26]} 28. f4 {[%clk 0:00:20]}  exf4 {[%clk 0:00:24]} 29. exf4 {[%clk 0:00:21]}  Ra6 {[%clk 0:00:16]} 30. Re7 {[%clk 0:00:20]}  Bf5 {[%clk 0:00:16]} 31. Rg1 {[%clk 0:00:18]}  g6 {[%clk 0:00:11]} 32. Rd1 {[%clk 0:00:17]}  Re6 {[%clk 0:00:09]} 33. Ra7 {[%clk 0:00:17]}  Rec6 {[%clk 0:00:08]} 34. Bc3 {[%clk 0:00:17]}  Rxc3 {[%clk 0:00:08]} 35. bxc3 {[%clk 0:00:16]}  Bc2 {[%clk 0:00:05]} 36. Rdd7 {[%clk 0:00:15]}  Bb3 {[%clk 0:00:03]} 37. Rg7+ {[%clk 0:00:15]}  Kf8 {[%clk 0:00:03]} 38. Rxh7 {[%clk 0:00:15]} 1-0


[Site "https://www.chess.com"]

[Event "Titled Tuesday Blitz May 24 Early 2022"]
[White "Cherniaiev, Tykhon"]
[Black "Pranav, V"]
[WhiteFideId "14182360"]
[BlackFideId "25060783"]
[WhiteElo "2289"]
[BlackElo "2349"]
[Result "1/2-1/2"]
[Round "03"]
[TimeControl "180+1"]
[Date "2022.05.24"]
[WhiteClock "0:01:39"]
[BlackClock "0:01:10"]

1. Nf3 {[%clk 0:03:00]}  Nf6 {[%clk 0:02:52]} 2. d4 {[%clk 0:03:00]}  e6 {[%clk 0:02:50]} 3. c4 {[%clk 0:03:00]}  b6 {[%clk 0:02:49]} 4. g3 {[%clk 0:03:00]}  Ba6 {[%clk 0:02:49]} 5. Qc2 {[%clk 0:03:00]}  Bb7 {[%clk 0:02:48]} 6. Bg2 {[%clk 0:03:00]}  c5 {[%clk 0:02:49]} 7. O-O {[%clk 0:03:00]}  cxd4 {[%clk 0:02:49]} 8. Nxd4 {[%clk 0:03:01]}  Bxg2 {[%clk 0:02:49]} 9. Kxg2 {[%clk 0:03:02]}  Be7 {[%clk 0:02:49]} 10. Rd1 {[%clk 0:03:01]}  O-O {[%clk 0:02:49]} 11. Nc3 {[%clk 0:03:02]}  Qc8 {[%clk 0:02:49]} 12. b3 {[%clk 0:03:02]}  Na6 {[%clk 0:02:49]} 13. Bb2 {[%clk 0:03:02]}  Qb7+ {[%clk 0:02:49]} 14. Kg1 {[%clk 0:03:02]}  Rac8 {[%clk 0:02:49]} 15. Rac1 {[%clk 0:03:01]}  d5 {[%clk 0:02:34]} 16. cxd5 {[%clk 0:02:59]}  Nb4 {[%clk 0:02:34]} 17. Qd2 {[%clk 0:02:58]}  Nbxd5 {[%clk 0:02:34]} 18. Nxd5 {[%clk 0:02:56]}  Qxd5 {[%clk 0:02:35]} 19. Nc6 {[%clk 0:02:48]}  Bc5 {[%clk 0:01:46]} 20. Qxd5 {[%clk 0:01:55]}  Nxd5 {[%clk 0:01:45]} 21. e4 {[%clk 0:01:54]}  Rxc6 {[%clk 0:01:15]} 22. exd5 {[%clk 0:01:53]}  Rd6 {[%clk 0:01:15]} 23. dxe6 {[%clk 0:01:52]}  Rxe6 {[%clk 0:01:16]} 24. Bd4 {[%clk 0:01:38]}  Bxd4 {[%clk 0:01:11]} 25. Rxd4 {[%clk 0:01:39]}  Re2 {[%clk 0:01:10]} 1/2-1/2


[Site "https://www.chess.com"]